bitfinex/quotes_SOLUSD_20230112
["timestamp","ask_amount","ask_price","bid_price","bid_amount"]
[1673561222149,17.0,16.433,16.421,45.68]
[1673561223941,37.0,16.433,16.421,45.68]
[1673561224350,17.0,16.433,16.421,45.68]
[1673561224671,17.0,16.433,16.419,45.69]
[1673561224891,37.0,16.433,16.418,45.69]
[1673561225080,37.0,16.433,16.419,20.0]
[1673561225411,37.0,16.433,16.42,45.69]
[1673561226884,118.5572,16.434,16.42,45.69]
[1673561227085,118.5572,16.434,16.42,58.21]
[1673561228254,17.0,16.433,16.42,58.21]
[1673561228559,20.0,16.44,16.421,20.0]
[1673561228776,20.0,16.44,16.422,62.68]
[1673561228960,20.0,16.44,16.423,20.0]
[1673561229169,20.0,16.44,16.424,45.68]
[1673561229412,20.0,16.44,16.425,37.0]
[1673561229618,20.0,16.44,16.426,45.67]
[1673561229804,20.0,16.44,16.427,20.0]
[1673561230136,20.0,16.44,16.428,45.66]
[1673561230325,20.0,16.44,16.429,20.0]
[1673561231173,20.0,16.44,16.423,20.0]
[1673561231394,20.0,16.44,16.424,62.68]
[1673561231600,20.0,16.44,16.425,20.0]
[1673561231804,17.0,16.439,16.426,62.67]
[1673561232015,17.0,16.439,16.427,20.0]
[1673561232330,17.0,16.439,16.428,45.66]
[1673561232540,17.0,16.439,16.429,20.0]
[1673561233170,17.0,16.439,16.423,20.0]
[1673561233383,17.0,16.439,16.424,45.68]
[1673561233594,17.0,16.439,16.425,20.0]
[1673561233828,17.0,16.439,16.421,45.68]
[1673561234020,65.64,16.438,16.421,45.68]
[1673561234231,20.0,16.436,16.421,45.68]
[1673561234440,17.0,16.435,16.421,45.68]
[1673561235081,117.8093,16.434,16.421,45.68]
[1673561235295,17.0,16.433,16.421,45.68]
[1673561235502,37.0,16.433,16.421,45.68]
[1673561237187,37.0,16.433,16.418,45.69]
[1673561237376,82.65,16.433,16.419,20.0]
[1673561237585,20.0,16.432,16.419,20.0]
[1673561237813,17.0,16.431,16.419,20.0]
[1673561238127,17.0,16.431,16.412,20.0]
[1673561238444,20.0,16.43,16.413,45.71]
[1673561238646,17.0,16.429,16.414,20.0]
[1673561238855,17.0,16.429,16.415,45.7]
[1673561239052,17.0,16.429,16.416,20.0]
[1673561239264,17.0,16.429,16.417,45.7]
[1673561239468,17.0,16.429,16.418,20.0]
[1673561239682,17.0,16.429,16.417,45.7]
[1673561239917,17.0,16.429,16.418,20.0]
[1673561240538,17.0,16.429,16.413,20.0]
[1673561240753,17.0,16.429,16.414,45.7]
[1673561240949,17.0,16.429,16.415,20.0]
[1673561241160,17.0,16.429,16.416,45.7]
[1673561241364,17.0,16.429,16.417,20.0]
[1673561241786,20.0,16.43,16.417,20.0]
[1673561242021,20.0,16.43,16.418,45.69]
[1673561242210,20.0,16.43,16.419,20.0]
[1673561242630,20.0,16.43,16.414,65.7]
[1673561243275,17.0,16.429,16.414,65.7]
[1673561247585,17.0,16.429,16.414,45.7]
[1673561247902,20.0,16.428,16.411,45.71]
[1673561248118,62.67,16.427,16.409,45.72]
[1673561250198,17.0,16.423,16.41,45.71]
[1673561250947,20.0,16.422,16.41,45.71]
[1673561251263,17.0,16.421,16.4,45.74]
[1673561251585,126.5701,16.421,16.401,17.0]
[1673561251894,126.5701,16.421,16.402,45.74]
[1673561252105,20.0,16.424,16.41,16.87]
[1673561252322,129.5701,16.431,16.411,62.71]
[1673561252505,109.5701,16.431,16.412,40.0]
[1673561252720,109.5701,16.431,16.413,62.71]
[1673561252947,109.5701,16.431,16.414,20.0]
[1673561253142,109.5701,16.431,16.415,62.7]
[1673561253361,37.0,16.43,16.416,20.0]
[1673561253562,37.0,16.43,16.417,45.7]
[1673561253765,37.0,16.43,16.418,20.0]
[1673561254409,37.0,16.43,16.416,65.7]
[1673561254619,82.66,16.43,16.416,65.7]
[1673561254840,37.0,16.43,16.416,20.0]
[1673561255050,37.0,16.43,16.413,20.0]
[1673561255365,37.0,16.43,16.414,45.7]
[1673561255573,37.0,16.43,16.415,20.0]
[1673561255891,37.0,16.43,16.416,45.7]
[1673561256104,37.0,16.43,16.417,20.0]
[1673561256727,37.0,16.43,16.414,65.7]
[1673561257357,109.5701,16.431,16.415,17.0]
[1673561257547,117.8093,16.434,16.42,16.87]
[1673561257758,117.8093,16.434,16.421,45.68]
[1673561258396,20.0,16.433,16.421,45.68]
[1673561258819,17.0,16.432,16.421,45.68]
[1673561265668,117.8093,16.434,16.421,45.68]
[1673561265888,117.8093,16.434,16.422,17.0]
[1673561266195,20.0,16.433,16.409,6.12612194]
[1673561266409,117.8093,16.434,16.42,84.35]
[1673561266626,117.8093,16.434,16.421,45.68]
[1673561268388,117.8093,16.434,16.422,17.0]
[1673561268708,20.0,16.436,16.423,45.68]
[1673561268918,65.64,16.436,16.424,17.0]
[1673561269134,20.0,16.436,16.424,17.0]
[1673561272194,45.63,16.44,16.424,17.0]
[1673561272407,117.7804,16.443,16.43,16.87]
[1673561272721,20.0,16.442,16.431,45.66]
[1673561273667,117.7804,16.443,16.431,45.66]
[1673561274394,117.7804,16.443,16.432,17.0]
[1673561274617,20.0,16.447,16.432,17.0]
[1673561274807,20.0,16.447,16.433,45.65]
[1673561275245,20.0,16.447,16.434,17.0]
[1673561276813,20.0,16.447,16.431,45.66]
[1673561277033,20.0,16.445,16.431,45.66]
[1673561277229,17.0,16.444,16.431,45.66]
[1673561277860,114.2864,16.443,16.431,45.66]
[1673561278172,17.0,16.442,16.431,45.66]
[1673561279339,17.0,16.442,16.43,16.78]
[1673561279657,20.0,16.441,16.424,45.68]
[1673561279853,20.0,16.439,16.425,20.0]
[1673561280186,17.0,16.438,16.425,20.0]
[1673561280395,17.0,16.438,16.422,20.0]
[1673561280615,17.0,16.438,16.423,45.68]
[1673561280922,17.0,16.438,16.424,20.0]
[1673561281142,17.0,16.438,16.425,45.67]
[1673561281321,20.0,16.439,16.426,37.0]
[1673561281536,20.0,16.44,16.43,16.87]
[1673561281954,20.0,16.44,16.431,45.66]
[1673561283238,20.0,16.442,16.431,45.66]
[1673561287655,114.2864,16.443,16.431,45.66]
[1673561288395,114.2864,16.443,16.432,17.0]
[1673561292598,20.0,16.442,16.432,17.0]
[1673561294278,20.0,16.442,16.431,45.66]
[1673561294493,20.0,16.442,16.43,16.84]
[1673561297431,20.0,16.442,16.431,62.66]
[1673561297734,114.2864,16.443,16.431,62.66]
[1673561298794,20.0,16.442,16.431,62.66]
[1673561299010,20.0,16.442,16.431,17.0]
[1673561300899,20.0,16.442,16.43,16.84]
[1673561301102,20.0,16.44,16.423,45.68]
[1673561301298,17.0,16.439,16.424,20.0]
[1673561301626,20.0,16.437,16.425,45.67]
[1673561301847,17.0,16.436,16.426,20.0]
[1673561302456,17.0,16.436,16.422,20.0]
[1673561302685,17.0,16.436,16.423,62.68]
[1673561302880,17.0,16.436,16.424,20.0]
[1673561303093,17.0,16.436,16.425,45.67]
[1673561303289,17.0,16.436,16.426,20.0]
[1673561303939,17.0,16.436,16.422,20.0]
[1673561304148,17.0,16.436,16.423,62.68]
[1673561304351,17.0,16.436,16.424,20.0]
[1673561304563,17.0,16.436,16.425,45.67]
[1673561304887,17.0,16.436,16.426,20.0]
[1673561305551,17.0,16.436,16.422,20.0]
[1673561305837,17.0,16.436,16.423,62.68]
[1673561306153,17.0,16.436,16.424,20.0]
[1673561306366,17.0,16.436,16.425,45.67]
[1673561306576,17.0,16.436,16.426,20.0]
[1673561307184,17.0,16.436,16.422,20.0]
[1673561307393,17.0,16.436,16.423,62.68]
[1673561307605,17.0,16.436,16.424,20.0]
[1673561307826,17.0,16.436,16.425,62.67]
[1673561308036,17.0,16.436,16.426,20.0]
[1673561312784,17.0,16.436,16.422,20.0]
[1673561312982,17.0,16.436,16.423,45.68]
[1673561313172,17.0,16.436,16.424,20.0]
[1673561313714,17.0,16.436,16.422,20.0]
[1673561313931,17.0,16.436,16.423,45.68]
[1673561314245,17.0,16.436,16.424,20.0]
[1673561314659,17.0,16.436,16.422,20.0]
[1673561314983,17.0,16.436,16.423,45.68]
[1673561315526,45.64,16.435,16.421,45.68]
[1673561315833,45.64,16.435,16.406,201.35336686]
[1673561315834,20.0,16.433,16.406,201.35336686]
[1673561316045,118.0301,16.432,16.42,12.51]
[1673561316660,20.0,16.431,16.42,12.51]
[1673561317411,17.0,16.43,16.42,12.51]
[1673561318027,20.0,16.431,16.42,12.51]
[1673561319610,20.0,16.431,16.413,45.71]
[1673561319820,62.66,16.43,16.414,20.0]
[1673561320039,20.0,16.429,16.415,26.26]
[1673561320242,20.0,16.429,16.416,20.0]
[1673561321302,17.0,16.428,16.412,20.0]
[1673561321619,20.0,16.426,16.411,26.79]
[1673561321800,128.7962,16.425,16.411,26.79]
[1673561322363,20.0,16.424,16.411,26.79]
[1673561322868,17.0,16.423,16.411,26.79]
[1673561323079,17.0,16.423,16.41,12.74]
[1673561323080,20.0,16.422,16.41,12.74]
[1673561323481,20.0,16.422,16.411,27.43]
[1673561323691,20.0,16.422,16.412,20.0]
[1673561323897,20.0,16.424,16.413,28.28]
[1673561324111,20.0,16.424,16.414,20.0]
[1673561324344,223.5045,16.425,16.415,29.13]
[1673561324530,223.5045,16.425,16.42,12.62]
[1673561329392,223.5045,16.425,16.415,46.13]
[1673561329592,20.0,16.424,16.416,18.37]
[1673561329802,20.0,16.424,16.411,16.12199414]
[1673561330015,20.0,16.424,16.412,18.37]
[1673561331183,20.0,16.424,16.413,20.0]
[1673561331381,20.0,16.424,16.414,45.7]
[1673561331705,20.0,16.424,16.415,37.0]
[1673561331913,20.0,16.424,16.416,45.7]
[1673561332198,20.0,16.424,16.417,20.0]
[1673561332743,20.0,16.424,16.413,20.0]
[1673561333063,20.0,16.424,16.414,62.7]
[1673561333277,20.0,16.424,16.415,20.0]
[1673561333470,20.0,16.424,16.416,45.7]
[1673561333679,20.0,16.424,16.417,20.0]
[1673561334112,20.0,16.424,16.412,20.0]
[1673561334323,20.0,16.424,16.413,45.33]
[1673561334646,20.0,16.424,16.414,20.0]
[1673561334850,17.0,16.423,16.414,20.0]
[1673561335067,17.0,16.423,16.412,20.0]
[1673561335264,17.0,16.423,16.411,20.0]
[1673561335471,20.0,16.422,16.411,20.0]
[1673561335901,20.0,16.422,16.412,29.22]
[1673561336221,20.0,16.422,16.404,29.16]
[1673561336434,20.0,16.422,16.41,63.1]
[1673561336747,20.0,16.422,16.41,63.18]
[1673561336939,20.0,16.422,16.411,17.0]
[1673561338120,20.0,16.422,16.412,20.0]
[1673561340641,20.0,16.422,16.413,17.0]
[1673561340952,20.0,16.422,16.414,20.0]
[1673561341160,20.0,16.422,16.411,20.0]
[1673561341354,20.0,16.422,16.412,17.0]
[1673561341688,20.0,16.422,16.413,20.0]
[1673561346203,20.0,16.422,16.412,17.0]
[1673561346416,62.68,16.421,16.41,12.66]
[1673561346607,20.0,16.42,16.41,12.66]
[1673561346819,45.69,16.419,16.41,12.66]
[1673561347030,20.0,16.418,16.41,12.66]
[1673561352402,20.0,16.418,16.403,170.15201808]
[1673561352614,20.0,16.416,16.404,20.0]
[1673561353345,131.9183,16.416,16.404,20.0]
[1673561355367,131.9183,16.416,16.405,17.0]
[1673561355579,131.9183,16.416,16.406,20.0]
[1673561355978,131.9183,16.416,16.407,17.0]
[1673561356308,131.9183,16.416,16.408,20.0]
[1673561360832,131.9183,16.416,16.41,12.51]
[1673561361025,20.0,16.416,16.41,12.51]
[1673561361239,18.86964965,16.42,16.41,12.51]
[1673561361449,18.86964965,16.42,16.411,17.0]
[1673561362601,18.86964965,16.42,16.41,12.51]
[1673561364284,45.69,16.419,16.408,20.0]
[1673561364508,62.69,16.419,16.404,20.0]
[1673561364834,20.0,16.418,16.404,20.0]
[1673561365144,45.7,16.417,16.404,20.0]
[1673561366093,109.9076,16.416,16.404,20.0]
[1673561366412,109.9076,16.416,16.405,17.0]
[1673561366619,109.9076,16.416,16.406,20.0]
[1673561366620,229.7132,16.416,16.406,20.0]
[1673561366830,65.7,16.415,16.406,20.0]
[1673561367040,20.0,16.414,16.403,170.15201808]
[1673561367254,45.71,16.413,16.403,170.15201808]
[1673561367457,37.0,16.412,16.403,170.15201808]
[1673561367670,20.0,16.41,16.403,170.15201808]
[1673561367871,45.72,16.409,16.403,170.15201808]
[1673561368407,17.0,16.408,16.403,6.81001808]
[1673561368613,20.0,16.406,16.391,6.547]
[1673561369012,45.72,16.409,16.391,20.0]
[1673561370295,20.0,16.41,16.391,20.0]
[1673561370511,17.0,16.409,16.391,20.0]
[1673561372083,20.0,16.408,16.391,20.0]
[1673561373226,65.72,16.408,16.391,20.0]
[1673561375673,20.0,16.408,16.391,20.0]
[1673561377780,20.0,16.408,16.402,217.947095]
[1673561386275,20.0,16.413,16.402,217.947095]
[1673561386476,20.0,16.413,16.403,20.0]
[1673561387414,20.0,16.413,16.402,217.947095]
[1673561387631,20.0,16.413,16.403,20.0]
[1673561387967,20.0,16.413,16.403,91.2270289]
[1673561388703,65.71,16.413,16.403,91.2270289]
[1673561388894,17.0,16.412,16.403,91.2270289]
[1673561390811,20.0,16.411,16.403,91.2270289]
[1673561391020,17.0,16.41,16.403,91.2270289]
[1673561396811,20.0,16.411,16.403,91.2270289]
[1673561400139,20.0,16.414,16.404,20.0]
[1673561400364,20.0,16.414,16.405,17.0]
[1673561400564,229.7132,16.416,16.405,17.0]
[1673561400792,229.7132,16.416,16.41,12.62]
[1673561401950,229.7132,16.416,16.41,103.8470289]
[1673561402359,20.0,16.418,16.41,103.8470289]
[1673561404038,20.0,16.418,16.411,17.0]
[1673561406054,20.0,16.418,16.411,108.2270289]
[1673561407002,20.0,16.418,16.411,91.2270289]
[1673561417923,20.0,16.418,16.412,17.0]
[1673561418137,20.0,16.418,16.412,108.2270289]
[1673561424325,20.0,16.418,16.412,91.2270289]
[1673561436929,20.0,16.418,16.412,0.0070289]
[1673561437137,0.06,16.41,16.4,12.74]
[1673561440520,0.06,16.41,16.401,17.0]
[1673561440851,0.06,16.41,16.4,12.74]
[1673561442214,0.06,16.41,16.401,17.0]
[1673561444104,0.06,16.41,16.39,63.14]
[1673561444294,3.00585,16.41,16.39,63.14]
[1673561444728,23.00585,16.41,16.39,63.14]
[1673561444937,20.0,16.409,16.39,63.14]
[1673561445145,20.0,16.408,16.39,63.14]
[1673561445359,129.9779,16.407,16.391,17.0]
[1673561445681,129.9779,16.407,16.39,63.14]
[1673561445991,20.0,16.406,16.39,63.14]
[1673561446399,117.9009,16.405,16.39,63.14]
[1673561446606,20.0,16.406,16.39,63.14]
[1673561447024,2.94585,16.405,16.39,12.74]
[1673561447237,20.0,16.406,16.39,12.74]
[1673561447451,22.94585,16.406,16.39,12.74]
[1673561449551,2.94585,16.405,16.39,12.74]
[1673561449865,2.94585,16.405,16.391,17.0]
[1673561450285,20.0,16.403,16.391,17.0]
[1673561451562,116.7351,16.404,16.391,17.0]
[1673561451769,2.94585,16.405,16.391,17.0]
[1673561451984,20.0,16.406,16.392,20.0]
[1673561452188,20.0,16.406,16.393,17.0]
[1673561452386,20.0,16.406,16.394,20.0]
[1673561452597,20.0,16.406,16.395,17.0]
[1673561461431,65.73,16.406,16.395,17.0]
[1673561463002,20.0,16.406,16.395,17.0]
[1673561464368,20.0,16.406,16.396,20.0]
[1673561464577,20.0,16.406,16.397,17.0]
[1673561464799,20.0,16.406,16.398,20.0]
[1673561464993,20.0,16.406,16.399,17.0]
[1673561475302,20.0,16.406,16.39,12.5]
[1673561475514,48.67585,16.405,16.38,116.4775]
[1673561475740,117.31425,16.404,16.38,116.4775]
[1673561475949,68.67585,16.403,16.38,116.4775]
[1673561476262,2.94585,16.402,16.38,174.2546]
[1673561476479,45.74,16.401,16.38,174.2546]
[1673561476677,2.94585,16.4,16.381,17.5]
[1673561476883,45.74,16.399,16.381,17.5]
[1673561477407,57.46035208,16.398,16.371,54.6802]
[1673561477618,48.69585,16.397,16.371,119.6186]
[1673561477823,20.0,16.395,16.371,24.1186]
[1673561478153,166.35605,16.394,16.37,64.15530635]
[1673561478355,2.94585,16.393,16.37,64.15530635]
[1673561478564,45.76,16.392,16.37,64.15530635]
[1673561478774,20.0,16.391,16.37,64.15530635]
[1673561478990,42.27,16.39,16.37,64.15530635]
[1673561479200,42.27,16.39,16.371,20.0]
[1673561479422,2.94585,16.389,16.371,20.0]
[1673561479628,2.94585,16.389,16.37,64.15530635]
[1673561479815,22.94585,16.389,16.37,64.15530635]
[1673561480445,22.94585,16.389,16.37,13.72530635]
[1673561480658,65.78,16.388,16.37,13.72530635]
[1673561480890,20.0,16.387,16.37,13.72530635]
[1673561481710,20.0,16.385,16.371,17.0]
[1673561481923,20.0,16.385,16.37,13.72530635]
[1673561483419,45.79,16.384,16.37,1.14530635]
[1673561483629,20.0,16.383,16.37,1.14530635]
[1673561483835,45.79,16.382,16.37,1.14530635]
[1673561484361,45.79,16.382,16.37,18.14530635]
[1673561484887,20.0,16.381,16.37,1.14530635]
[1673561485202,45.8,16.38,16.37,1.14530635]
[1673561485823,20.0,16.381,16.37,13.76530635]
[1673561486150,58.42,16.38,16.37,1.14530635]
[1673561486341,58.42,16.38,16.365,39.82895083]
[1673561486342,108.83,16.38,16.365,39.82895083]
[1673561486552,3.43591904,16.369,16.365,39.82895083]
[1673561486764,45.83,16.368,16.353,92.385409]
[1673561486977,99.04105094,16.364,16.353,92.385409]
[1673561487195,99.04105094,16.364,16.354,54.48703783]
[1673561487196,45.85,16.363,16.354,54.48703783]
[1673561487391,99.04105094,16.364,16.354,94.89735776]
[1673561487602,99.04105094,16.364,16.363,23.452157]
[1673561487817,147.82690094,16.364,16.353,0.005409]
[1673561488026,99.04105094,16.364,16.358,15.18730574]
[1673561488249,24.45,16.363,16.354,48.0913773]
[1673561488564,20.0,16.367,16.355,20.0]
[1673561488774,20.0,16.367,16.36,63.34]
[1673561488968,3.43591904,16.369,16.36,63.34]
[1673561489177,3.43591904,16.369,16.361,20.0]
[1673561491097,20.0,16.381,16.374,65.81]
[1673561491279,20.0,16.381,16.375,17.0]
[1673561491496,20.0,16.381,16.376,65.81]
[1673561491706,20.0,16.382,16.377,17.0]
[1673561492132,20.0,16.383,16.378,45.8]
[1673561492543,20.0,16.383,16.377,45.81]
[1673561493400,20.0,16.383,16.378,17.0]
[1673561494020,20.0,16.384,16.378,17.0]
[1673561494354,20.0,16.384,16.377,45.81]
[1673561495289,20.0,16.384,16.371,45.82]
[1673561496351,22.94585,16.384,16.37,12.5]
[1673561496662,20.0,16.382,16.364,45.84]
[1673561496847,22.94585,16.382,16.365,20.0]
[1673561497062,45.8,16.381,16.366,45.84]
[1673561497273,45.8,16.381,16.367,20.0]
[1673561497481,20.0,16.38,16.367,20.0]
[1673561497795,20.0,16.38,16.37,12.62]
[1673561498004,20.0,16.38,16.371,45.82]
[1673561498226,20.0,16.38,16.371,62.82]
[1673561498766,20.0,16.38,16.37,12.62]
[1673561499607,20.0,16.38,16.368,45.83]
[1673561499792,2.94585,16.379,16.367,20.0]
[1673561500002,2.94585,16.379,16.364,20.0]
[1673561500213,131.2232,16.38,16.365,45.84]
[1673561500424,131.2232,16.38,16.366,20.0]
[1673561500648,131.2232,16.38,16.367,45.83]
[1673561500964,131.2232,16.38,16.366,20.0]
[1673561501161,131.2232,16.38,16.367,17.0]
[1673561501588,131.2232,16.38,16.366,17.0]
[1673561501807,131.2232,16.38,16.367,65.83]
[1673561502009,131.2232,16.38,16.367,20.0]
[1673561502535,131.2232,16.38,16.368,45.83]
[1673561502862,131.2232,16.38,16.369,17.0]
[1673561503069,131.2232,16.38,16.37,16.82]
[1673561503264,131.2232,16.38,16.37,62.65]
[1673561503594,20.0,16.384,16.37,62.65]
[1673561503804,51.65764255,16.39,16.371,37.0]
[1673561503805,20.0,16.389,16.371,37.0]
[1673561504020,20.0,16.389,16.372,45.82]
[1673561504242,20.0,16.389,16.373,37.0]
[1673561504435,20.0,16.389,16.374,45.81]
[1673561504634,20.0,16.389,16.37,84.71]
[1673561504635,65.77,16.389,16.37,17.11]
[1673561504846,48.72585,16.387,16.36,84.91]
[1673561505066,2.94585,16.386,16.364,14.86075227]
[1673561505383,20.0,16.384,16.364,14.86075227]
[1673561505589,161.2634,16.383,16.365,45.84]
[1673561506213,161.2634,16.383,16.363,45.85]
[1673561506214,19.94585,16.382,16.363,45.85]
[1673561506439,20.0,16.38,16.363,45.85]
[1673561507045,20.0,16.38,16.364,20.0]
[1673561507275,139.5213,16.38,16.365,17.0]
[1673561507479,20.0,16.378,16.361,45.85]
[1673561507701,62.81,16.377,16.358,45.86]
[1673561507889,62.81,16.377,16.354,45.87]
[1673561508101,118.41925,16.376,16.355,20.0]
[1673561508328,45.81,16.375,16.36,16.85]
[1673561508530,20.0,16.374,16.36,16.85]
[1673561508734,45.82,16.373,16.36,16.85]
[1673561508952,45.82,16.373,16.361,17.0]
[1673561509155,20.0,16.374,16.361,17.0]
[1673561509578,45.82,16.373,16.36,16.85]
[1673561509778,45.82,16.373,16.356,45.87]
[1673561510220,45.82,16.373,16.357,20.0]
[1673561510427,45.82,16.373,16.358,45.86]
[1673561510643,45.82,16.373,16.357,20.0]
[1673561510847,45.82,16.373,16.358,45.86]
[1673561511172,20.0,16.372,16.359,17.0]
[1673561511483,20.0,16.372,16.36,16.92]
[1673561511681,45.82,16.371,16.361,17.0]
[1673561511892,20.0,16.372,16.361,17.0]
[1673561512964,2.94585,16.374,16.362,45.85]
[1673561513144,20.0,16.378,16.363,37.0]
[1673561513356,20.0,16.378,16.364,45.84]
[1673561513565,20.0,16.378,16.365,37.0]
[1673561514201,20.0,16.378,16.366,45.84]
[1673561514420,20.0,16.378,16.367,37.0]
[1673561514611,20.0,16.378,16.367,17.0]
[1673561514817,20.0,16.378,16.366,45.84]
[1673561515030,20.0,16.378,16.367,20.0]
[1673561515237,22.94585,16.378,16.365,20.0]
[1673561515483,68.74585,16.378,16.365,20.0]
[1673561515678,100.40349255,16.378,16.362,20.0]
[1673561515892,100.40349255,16.378,16.363,62.85]
[1673561516099,100.40349255,16.378,16.364,20.0]
[1673561516504,20.0,16.377,16.364,20.0]
[1673561517154,20.0,16.377,16.361,45.85]
[1673561517366,17.0,16.376,16.361,45.85]
[1673561517553,48.75585,16.375,16.36,16.96]
[1673561517769,19.94585,16.374,16.36,16.96]
[1673561517988,45.82,16.373,16.36,16.96]
[1673561518397,20.0,16.372,16.36,16.96]
[1673561518828,45.82,16.371,16.36,16.96]
[1673561519040,158.5676,16.371,16.36,16.96]
[1673561519469,112.7476,16.371,16.36,16.96]
[1673561519881,112.7476,16.371,16.361,62.85]
[1673561520305,31.65764255,16.373,16.361,17.0]
[1673561520513,20.0,16.376,16.362,45.85]
[1673561520727,20.0,16.378,16.363,37.0]
[1673561521054,20.0,16.378,16.364,45.84]
[1673561521263,20.0,16.378,16.37,16.92]
[1673561521468,20.0,16.378,16.371,17.0]
[1673561521678,51.65764255,16.378,16.372,45.82]
[1673561521884,51.65764255,16.378,16.371,62.82]
[1673561522736,20.0,16.378,16.371,62.82]
[1673561522934,134.3383,16.381,16.371,62.82]
[1673561522935,51.65764255,16.381,16.371,62.82]
[1673561523140,51.65764255,16.381,16.372,20.0]
[1673561523349,51.65764255,16.381,16.373,62.82]
[1673561523583,51.65764255,16.381,16.374,20.0]
[1673561523802,31.65764255,16.38,16.374,20.0]
[1673561524188,31.65764255,16.38,16.375,17.0]
[1673561524395,31.65764255,16.382,16.376,20.0]
[1673561524632,51.65764255,16.386,16.377,17.0]
[1673561524828,20.0,16.386,16.377,17.0]
[1673561527039,20.0,16.386,16.372,45.82]
[1673561527251,20.0,16.382,16.37,17.02]
[1673561527655,20.0,16.382,16.371,14.87514915]
[1673561528081,51.65764255,16.382,16.371,14.87514915]
[1673561528307,51.65764255,16.382,16.37,62.85]
[1673561528501,51.65764255,16.382,16.37,17.02]
[1673561528706,20.0,16.382,16.37,17.02]
[1673561529769,20.0,16.382,16.371,17.0]
[1673561531041,20.0,16.382,16.371,62.82]
[1673561531443,20.0,16.382,16.37,17.02]
[1673561531879,45.8,16.381,16.37,17.02]
[1673561532066,20.0,16.382,16.371,17.0]
[1673561532491,20.0,16.382,16.371,62.82]
[1673561532809,20.0,16.382,16.371,17.0]
[1673561533345,20.0,16.382,16.372,14.87514915]
[1673561533537,20.0,16.382,16.373,62.81]
[1673561533748,20.0,16.382,16.373,17.0]
[1673561533972,20.0,16.382,16.373,31.87514915]
[1673561534607,20.0,16.382,16.373,17.0]